[Event "Open Cappelle-la-Grande"]
[Date "2025.02.16"]
[White "Lesueur, Gabriel"]
[Black "Raja Rithvik R"]
[WhiteElo "2319"]
[BlackElo "2522"]
[Round "2.2.5"]
[Result "0-1"]
[TimeControl "40/5400+30:1800+30"]

1. e4 {[%clk 1:30:55]} 1... e5 {[%clk 1:30:23]} 2. Nf3 {[%clk 1:31:18]} 2... Nc6
{[%clk 1:30:48]} 3. Bb5 {[%clk 1:31:25]} 3... a6 {[%clk 1:31:09]} 4. Ba4 {[%clk
1:31:50]} 4... Nf6 {[%clk 1:31:31]} 5. O-O {[%clk 1:32:13]} 5... d6 {[%clk
1:31:46]} 6. d4 {[%clk 1:22:40]} 6... b5 {[%clk 1:29:32]} 7. Bb3 {[%clk
1:22:19]} 7... Nxd4 {[%clk 1:29:19]} 8. Nxd4 {[%clk 1:22:44]} 8... exd4 {[%clk
1:29:46]} 9. c3 {[%clk 1:22:28]} 9... dxc3 {[%clk 1:25:11]} 10. Nxc3 {[%clk
1:11:24]} 10... Be7 {[%clk 1:21:56]} 11. Qe2 {[%clk 1:07:50]} 11... O-O {[%clk
1:09:17]} 12. Rd1 {[%clk 1:00:00]} 12... Qe8 {[%clk 1:07:47]} 13. Bf4 {[%clk
0:55:56]} 13... Bg4 {[%clk 0:57:34]} 14. f3 {[%clk 0:55:01]} 14... Be6 {[%clk
0:57:52]} 15. Rac1 {[%clk 0:39:51]} 15... Bxb3 {[%clk 0:44:13]} 16. axb3 {[%clk
0:39:40]} 16... Nh5 {[%clk 0:40:23]} 17. Be3 {[%clk 0:17:59]} 17... c6 {[%clk
0:40:40]} 18. Qc2 {[%clk 0:18:25]} 18... Nf6 {[%clk 0:19:11]} 19. Ne2 {[%clk
0:16:34]} 19... c5 {[%clk 0:12:29]} 20. Bf4 {[%clk 0:11:50]} 20... Qb8 {[%clk
0:09:01]} 21. Nc3 {[%clk 0:11:18]} 21... Qb6 {[%clk 0:08:56]} 22. Qf2 {[%clk
0:09:08]} 22... Rac8 {[%clk 0:07:43]} 23. Nd5 {[%clk 0:08:41]} 23... Nxd5 {[%clk
0:08:09]} 24. Rxd5 {[%clk 0:09:09]} 24... Rc6 {[%clk 0:07:44]} 25. Rcd1 {[%clk
0:04:44]} 25... Rd8 {[%clk 0:06:40]} 26. Kh1 {[%clk 0:04:23]} 26... Bf6 {[%clk
0:04:11]} 27. Qg3 {[%clk 0:03:13]} 27... Re8 {[%clk 0:01:42]} 28. Rxd6 {[%clk
0:02:15]} 28... Rxd6 {[%clk 0:00:47]} 29. Rxd6 {[%clk 0:01:12]} 29... Rd8 {[%clk
0:00:08]} 30. h4 {[%clk 0:00:40]} 30... Rxd6 {[%clk 0:00:59]} 31. Bxd6 {[%clk
0:01:09]} 31... Bxb2 {[%clk 0:00:51]} 32. Be5 {[%clk 0:00:40]} 32... Bxe5 {[%clk
0:00:58]} 33. Qxe5 {[%clk 0:01:09]} 33... Qd8 {[%clk 0:00:41]} 34. Qxc5 {[%clk
0:01:16]} 34... Qxh4+ {[%clk 0:00:56]} 35. Kg1 {[%clk 0:01:45]} 35... Qe1+
{[%clk 0:00:53]} 36. Kh2 {[%clk 0:02:14]} 36... Qh4+ {[%clk 0:01:19]} 37. Kg1
{[%clk 0:02:41]} 37... Qd8 {[%clk 0:01:47]} 38. b4 {[%clk 0:01:05]} 38... g6
{[%clk 0:01:47]} 39. Kf2 {[%clk 0:00:43]} 39... Qd2+ {[%clk 0:01:29]} 40. Kg3
{[%clk 0:00:50]} 40... h6 {[%clk 0:00:38]} 41. Qe7 {[%clk 0:16:23]} 41... Qg5+
{[%clk 0:09:43]} 42. Qxg5 {[%clk 0:16:46]} 42... hxg5 {[%clk 0:10:12]} 43. e5
{[%clk 0:08:08]} 43... f6 {[%clk 0:10:13]} 44. exf6 {[%clk 0:08:28]} 44... Kf7
{[%clk 0:10:40]} 45. Kg4 {[%clk 0:08:47]} 45... Kxf6 {[%clk 0:11:07]} 46. g3
{[%clk 0:05:23]} 46... Ke5 {[%clk 0:11:33]} 47. Kxg5 {[%clk 0:05:36]} 47... Kd5
{[%clk 0:12:02]} 48. Kxg6 {[%clk 0:00:57]} 48... a5 {[%clk 0:12:20]} 49. bxa5
{[%clk 0:01:23]} 49... b4 {[%clk 0:12:48]} 50. a6 {[%clk 0:01:37]} 50... Kc6
{[%clk 0:13:13]} 51. a7 {[%clk 0:02:04]} 51... Kb7 {[%clk 0:13:41]} 52. f4
{[%clk 0:02:29]} 52... b3 {[%clk 0:14:09]} 53. f5 {[%clk 0:02:54]} 53... b2
{[%clk 0:14:36]} 54. f6 {[%clk 0:03:21]} 54... b1=Q+ {[%clk 0:15:01]} 55. Kg7
{[%clk 0:03:35]} 55... Qb2 {[%clk 0:10:06]} 56. g4 {[%clk 0:02:57]} 56... Qe5
{[%clk 0:09:34]} 57. Kg6 {[%clk 0:02:43]} 57... Qe6 {[%clk 0:08:08]} 58. g5
{[%clk 0:01:52]} 58... Qg8+ {[%clk 0:08:34]} 59. Kf5 {[%clk 0:01:50]} 59... Kxa7
{[%clk 0:08:42]} 60. g6 {[%clk 0:01:19]} 60... Qd5+ {[%clk 0:08:56]} 61. Kf4
{[%clk 0:01:40]} 61... Qe6 {[%clk 0:09:23]} 62. f7 {[%clk 0:00:33]} 62... Qf6+
{[%clk 0:09:48]} 63. Ke3 {[%clk 0:00:59]} 63... Kb6 {[%clk 0:10:14]} 0-1

[Variant "Standard"]
[Site "Europe Echecs"]

[Event "Open Cappelle-la-Grande"]
[Date "2025.02.16"]
[White "Boyer, Mahel"]
[Black "Yao, Lan"]
[WhiteElo "2509"]
[BlackElo "2316"]
[Round "2.2.6"]
[Result "1-0"]
[TimeControl "40/5400+30:1800+30"]

1. Nf3 {[%clk 1:30:56]} 1... d5 {[%clk 1:29:49]} 2. b3 {[%clk 1:31:08]} 2... Nf6
{[%clk 1:29:40]} 3. Bb2 {[%clk 1:31:32]} 3... e6 {[%clk 1:28:15]} 4. c4 {[%clk
1:31:29]} 4... b6 {[%clk 1:28:15]} 5. g3 {[%clk 1:24:58]} 5... Be7 {[%clk
1:28:12]} 6. cxd5 {[%clk 1:24:59]} 6... exd5 {[%clk 1:28:34]} 7. Bg2 {[%clk
1:25:22]} 7... O-O {[%clk 1:26:29]} 8. O-O {[%clk 1:25:42]} 8... Bb7 {[%clk
1:26:38]} 9. e3 {[%clk 1:25:25]} 9... Nbd7 {[%clk 1:26:23]} 10. Nc3 {[%clk
1:25:44]} 10... Re8 {[%clk 1:20:08]} 11. Re1 {[%clk 1:18:26]} 11... Bf8 {[%clk
1:09:01]} 12. Rc1 {[%clk 1:17:40]} 12... Nc5 {[%clk 0:59:56]} 13. d3 {[%clk
1:17:13]} 13... Ne6 {[%clk 0:55:33]} 14. Ne2 {[%clk 1:14:20]} 14... Rc8 {[%clk
0:47:56]} 15. Nf4 {[%clk 1:02:44]} 15... Nxf4 {[%clk 0:46:26]} 16. exf4 {[%clk
1:03:03]} 16... Rxe1+ {[%clk 0:45:38]} 17. Qxe1 {[%clk 1:03:24]} 17... c5 {[%clk
0:45:10]} 18. Ne5 {[%clk 1:00:44]} 18... Rc7 {[%clk 0:44:01]} 19. d4 {[%clk
0:55:45]} 19... Ne4 {[%clk 0:43:07]} 20. dxc5 {[%clk 0:53:19]} 20... Bxc5 {[%clk
0:41:03]} 21. Nd3 {[%clk 0:53:23]} 21... Bd6 {[%clk 0:40:45]} 22. Bd4 {[%clk
0:36:28]} 22... Nc5 {[%clk 0:34:09]} 23. Ne5 {[%clk 0:26:42]} 23... Re7 {[%clk
0:28:49]} 24. Qd2 {[%clk 0:25:58]} 24... f6 {[%clk 0:26:57]} 25. Ng4 {[%clk
0:25:44]} 25... Ne4 {[%clk 0:25:48]} 26. Qb2 {[%clk 0:25:29]} 26... Rc7 {[%clk
0:24:27]} 27. Rd1 {[%clk 0:22:01]} 27... Qc8 {[%clk 0:21:43]} 28. Ne3 {[%clk
0:21:08]} 28... Qe6 {[%clk 0:21:40]} 29. b4 {[%clk 0:20:55]} 29... Bf8 {[%clk
0:21:07]} 30. Qb3 {[%clk 0:20:06]} 30... Rd7 {[%clk 0:10:42]} 31. Bb2 {[%clk
0:15:46]} 31... Kh8 {[%clk 0:08:12]} 32. Rd4 {[%clk 0:10:44]} 32... Nd6 {[%clk
0:07:09]} 33. Bxd5 {[%clk 0:09:57]} 33... Bxd5 {[%clk 0:07:36]} 34. Rxd5 {[%clk
0:08:39]} 34... Ne4 {[%clk 0:07:17]} 35. f5 {[%clk 0:07:52]} 35... Qf7 {[%clk
0:07:01]} 36. Qd3 {[%clk 0:06:31]} 36... Rxd5 {[%clk 0:07:08]} 37. Nxd5 {[%clk
0:06:08]} 37... Nd6 {[%clk 0:06:50]} 38. b5 {[%clk 0:03:46]} 38... Qd7 {[%clk
0:06:14]} 39. Ba3 {[%clk 0:04:10]} 39... Kg8 {[%clk 0:04:38]} 40. Bxd6 {[%clk
0:03:33]} 40... Qxd6 {[%clk 0:04:34]} 41. Qc4 {[%clk 0:02:45]} 41... Kh8 {[%clk
0:04:16]} 42. Nf4 {[%clk 0:26:22]} 42... Qc5 {[%clk 0:27:46]} 43. Qf7 {[%clk
0:26:05]} 43... Qe7 {[%clk 0:28:07]} 44. Qc4 {[%clk 0:21:52]} 44... Qe1+ {[%clk
0:24:53]} 45. Kg2 {[%clk 0:20:42]} 45... Bc5 {[%clk 0:24:55]} 46. Nd3 {[%clk
0:20:03]} 46... Qe7 {[%clk 0:25:07]} 47. Qe6 {[%clk 0:17:53]} 47... h6 {[%clk
0:19:42]} 48. Qxe7 {[%clk 0:15:43]} 48... Bxe7 {[%clk 0:20:03]} 49. Kf3 {[%clk
0:16:07]} 1-0

[Variant "Standard"]
[Site "Europe Echecs"]

[Event "Open Cappelle-la-Grande"]
[Date "2025.02.16"]
[White "Jacobsen, Mikkel Manosri"]
[Black "Girel, Joseph"]
[WhiteElo "2314"]
[BlackElo "2484"]
[Round "2.2.7"]
[Result "1/2-1/2"]
[TimeControl "40/5400+30:1800+30"]

1. Nf3 {[%clk 1:30:26]} 1... g6 {[%clk 1:27:41]} 2. g3 {[%clk 1:30:50]} 2... Bg7
{[%clk 1:27:48]} 3. Bg2 {[%clk 1:30:41]} 3... e5 {[%clk 1:27:07]} 4. O-O {[%clk
1:25:56]} 4... d5 {[%clk 1:23:51]} 5. c4 {[%clk 1:25:42]} 5... dxc4 {[%clk
1:22:24]} 6. Qa4+ {[%clk 1:26:00]} 6... Nc6 {[%clk 1:20:45]} 7. Nxe5 {[%clk
1:25:15]} 7... Bxe5 {[%clk 1:21:01]} 8. Bxc6+ {[%clk 1:25:42]} 8... bxc6 {[%clk
1:21:19]} 9. Qxc6+ {[%clk 1:26:09]} 9... Bd7 {[%clk 1:21:29]} 10. Qe4 {[%clk
1:26:34]} 10... f6 {[%clk 1:20:45]} 11. f4 {[%clk 1:26:53]} 11... Bf5 {[%clk
1:19:08]} 12. Qc6+ {[%clk 1:27:17]} 12... Bd7 {[%clk 1:18:48]} 13. Qe4 {[%clk
1:27:41]} 13... Bf5 {[%clk 1:11:55]} 14. Qc6+ {[%clk 1:28:06]} 14... Bd7 {[%clk
1:12:16]} 15. Qe4 {[%clk 1:28:33]} 15... Bf5 {[%clk 1:11:18]} 16. Qc6+ {[%clk
1:28:57]} 16... Bd7 {[%clk 1:11:37]} 1/2-1/2

[Variant "Standard"]
[Site "Europe Echecs"]

[Event "Open Cappelle-la-Grande"]
[Date "2025.02.16"]
[White "Iglesias, Yosha"]
[Black "Suleymenov, Alisher"]
[WhiteElo "2300"]
[BlackElo "2481"]
[Round "2.2.8"]
[Result "0-1"]
[TimeControl "40/5400+30:1800+30"]

1. d4 {[%clk 1:30:56]} 1... d5 {[%clk 1:27:50]} 2. c4 {[%clk 1:30:45]} 2... e6
{[%clk 1:27:10]} 3. Nc3 {[%clk 1:31:09]} 3... a6 {[%clk 1:26:51]} 4. cxd5 {[%clk
1:31:06]} 4... exd5 {[%clk 1:27:16]} 5. Bf4 {[%clk 1:30:25]} 5... c6 {[%clk
1:26:46]} 6. e3 {[%clk 1:30:00]} 6... Bd6 {[%clk 1:27:10]} 7. Bxd6 {[%clk
1:29:06]} 7... Qxd6 {[%clk 1:27:34]} 8. Bd3 {[%clk 1:29:32]} 8... Ne7 {[%clk
1:27:41]} 9. Nge2 {[%clk 1:25:38]} 9... Bf5 {[%clk 1:26:17]} 10. Nf4 {[%clk
1:25:00]} 10... O-O {[%clk 1:25:35]} 11. O-O {[%clk 1:24:24]} 11... Nd7 {[%clk
1:25:39]} 12. Qc2 {[%clk 1:24:21]} 12... g6 {[%clk 1:18:35]} 13. Na4 {[%clk
1:10:44]} 13... Rfe8 {[%clk 1:12:37]} 14. b4 {[%clk 1:00:55]} 14... b6 {[%clk
0:59:55]} 15. Rfc1 {[%clk 0:51:00]} 15... Bxd3 {[%clk 0:53:22]} 16. Nxd3 {[%clk
0:50:35]} 16... a5 {[%clk 0:53:19]} 17. a3 {[%clk 0:37:18]} 17... axb4 {[%clk
0:51:54]} 18. axb4 {[%clk 0:37:35]} 18... b5 {[%clk 0:51:32]} 19. Nac5 {[%clk
0:37:57]} 19... Nb6 {[%clk 0:51:55]} 20. Qc3 {[%clk 0:36:41]} 20... Nc4 {[%clk
0:51:28]} 21. e4 {[%clk 0:24:24]} 21... dxe4 {[%clk 0:45:36]} 22. Nxe4 {[%clk
0:24:48]} 22... Qe6 {[%clk 0:45:37]} 23. Ndc5 {[%clk 0:24:11]} 23... Qf5 {[%clk
0:44:50]} 24. Rxa8 {[%clk 0:19:37]} 24... Rxa8 {[%clk 0:42:59]} 25. Ra1 {[%clk
0:20:03]} 25... Rd8 {[%clk 0:36:44]} 26. Ra7 {[%clk 0:12:18]} 26... Nd5 {[%clk
0:34:58]} 27. Qf3 {[%clk 0:10:37]} 27... Qxf3 {[%clk 0:28:25]} 28. gxf3 {[%clk
0:11:04]} 28... Nf4 {[%clk 0:25:23]} 29. h4 {[%clk 0:07:05]} 29... Rxd4 {[%clk
0:17:58]} 30. Nd7 {[%clk 0:06:42]} 30... Kg7 {[%clk 0:16:28]} 31. Kh2 {[%clk
0:05:29]} 31... Nd3 {[%clk 0:10:34]} 32. Ndf6 {[%clk 0:05:12]} 32... Nxf2 {[%clk
0:09:22]} 33. Ne8+ {[%clk 0:03:58]} 33... Kf8 {[%clk 0:09:47]} 34. N4f6 {[%clk
0:04:08]} 34... Rd2 {[%clk 0:06:47]} 35. Kg3 {[%clk 0:04:21]} 35... Ne3 {[%clk
0:06:27]} 36. Ra8 {[%clk 0:02:58]} 36... Nf5+ {[%clk 0:05:55]} 37. Kf4 {[%clk
0:02:52]} 37... Rd4+ {[%clk 0:05:25]} 38. Ne4 {[%clk 0:02:33]} 38... Ke7 {[%clk
0:04:35]} 39. Nf6 {[%clk 0:02:00]} 39... Nxe4 {[%clk 0:04:28]} 40. Ng8+ {[%clk
0:01:36]} 40... Ke6 {[%clk 0:03:05]} 41. Re8+ {[%clk 0:28:05]} 41... Kd7 {[%clk
0:32:11]} 42. Rxe4 {[%clk 0:28:28]} 42... h5 {[%clk 0:27:53]} 43. Kg5 {[%clk
0:27:45]} 43... Rxe4 {[%clk 0:27:29]} 44. fxe4 {[%clk 0:28:09]} 44... Ne7 {[%clk
0:27:29]} 0-1

[Variant "Standard"]
[Site "Europe Echecs"]

[Event "Open Cappelle-la-Grande"]
[Date "2025.02.16"]
[White "Muthaiah AL"]
[Black "Degardin, Sylvain"]
[WhiteElo "2474"]
[BlackElo "2309"]
[Round "2.2.9"]
[Result "1-0"]
[TimeControl "40/5400+30:1800+30"]

1. Nf3 {[%clk 1:26:02]} 1... d5 {[%clk 1:23:23]} 2. c4 {[%clk 1:26:07]} 2... e6
{[%clk 1:23:22]} 3. g3 {[%clk 1:25:59]} 3... Nf6 {[%clk 1:23:16]} 4. Bg2 {[%clk
1:26:16]} 4... Be7 {[%clk 1:23:26]} 5. O-O {[%clk 1:26:27]} 5... O-O {[%clk
1:23:35]} 6. b3 {[%clk 1:26:49]} 6... d4 {[%clk 1:23:08]} 7. e3 {[%clk 1:25:55]}
7... c5 {[%clk 1:22:05]} 8. Ne5 {[%clk 1:21:13]} 8... Qc7 {[%clk 1:21:26]} 9. f4
{[%clk 1:21:25]} 9... Nfd7 {[%clk 1:20:46]} 10. Nd3 {[%clk 1:18:44]} 10... Nc6
{[%clk 1:19:54]} 11. Na3 {[%clk 1:16:46]} 11... Rd8 {[%clk 1:06:22]} 12. Bb2
{[%clk 1:08:30]} 12... a6 {[%clk 0:57:13]} 13. exd4 {[%clk 1:02:05]} 13... cxd4
{[%clk 0:50:47]} 14. Nc2 {[%clk 1:00:28]} 14... Nc5 {[%clk 0:47:10]} 15. Nxc5
{[%clk 0:59:06]} 15... Bxc5 {[%clk 0:47:08]} 16. d3 {[%clk 0:59:06]} 16... Bd7
{[%clk 0:42:11]} 17. a3 {[%clk 0:48:00]} 17... a5 {[%clk 0:40:55]} 18. Rb1
{[%clk 0:35:56]} 18... Rab8 {[%clk 0:37:04]} 19. Qd2 {[%clk 0:29:26]} 19... b5
{[%clk 0:32:22]} 20. b4 {[%clk 0:27:56]} 20... bxc4 {[%clk 0:28:57]} 21. bxc5
{[%clk 0:22:42]} 21... Rxb2 {[%clk 0:27:14]} 22. Rxb2 {[%clk 0:22:34]} 22... c3
{[%clk 0:27:25]} 23. Qc1 {[%clk 0:22:41]} 23... cxb2 {[%clk 0:27:36]} 24. Qxb2
{[%clk 0:23:10]} 24... Rb8 {[%clk 0:26:13]} 25. Qa2 {[%clk 0:18:40]} 25... Ne7
{[%clk 0:22:46]} 26. Qc4 {[%clk 0:16:18]} 26... Nf5 {[%clk 0:12:54]} 27. c6
{[%clk 0:13:33]} 27... Be8 {[%clk 0:11:28]} 28. Qc5 {[%clk 0:07:36]} 28... Rb2
{[%clk 0:04:24]} 29. Rc1 {[%clk 0:06:46]} 29... h5 {[%clk 0:02:49]} 30. Nxd4
{[%clk 0:05:09]} 30... Ne3 {[%clk 0:01:11]} 31. Bf3 {[%clk 0:03:52]} 31... h4
{[%clk 0:00:57]} 32. Nb5 {[%clk 0:03:31]} 32... Rxb5 {[%clk 0:00:38]} 33. Qxb5
{[%clk 0:03:52]} 33... hxg3 {[%clk 0:00:52]} 34. hxg3 {[%clk 0:04:13]} 34... Nf5
{[%clk 0:00:33]} 35. Qe5 {[%clk 0:03:14]} 35... Qb6+ {[%clk 0:00:35]} 36. Qc5
{[%clk 0:03:33]} 36... Qb2 {[%clk 0:00:31]} 37. c7 {[%clk 0:02:51]} 37... Nd4
{[%clk 0:00:52]} 38. Rf1 {[%clk 0:02:23]} 1-0

[Variant "Standard"]
[Site "Europe Echecs"]

[Event "Open Cappelle-la-Grande"]
[Date "2025.02.16"]
[White "Dessyn, Timothee"]
[Black "Eugene, Floryan"]
[WhiteElo "2283"]
[BlackElo "2468"]
[Round "2.2.10"]
[Result "0-1"]
[TimeControl "40/5400+30:1800+30"]

1. d4 {[%clk 1:30:57]} 1... Nf6 {[%clk 1:30:52]} 2. c4 {[%clk 1:31:23]} 2... g6
{[%clk 1:31:19]} 3. Nc3 {[%clk 1:31:50]} 3... Bg7 {[%clk 1:31:45]} 4. e4 {[%clk
1:32:15]} 4... d6 {[%clk 1:32:11]} 5. h3 {[%clk 1:32:41]} 5... Nbd7 {[%clk
1:32:10]} 6. g4 {[%clk 1:16:45]} 6... c5 {[%clk 1:30:26]} 7. Nge2 {[%clk
1:11:16]} 7... Qa5 {[%clk 1:30:07]} 8. Bg2 {[%clk 1:00:50]} 8... cxd4 {[%clk
1:21:59]} 9. Nxd4 {[%clk 0:51:45]} 9... Ne5 {[%clk 1:19:19]} 10. O-O {[%clk
0:50:06]} 10... Nxc4 {[%clk 1:13:27]} 11. Qe2 {[%clk 0:47:07]} 11... Ne5 {[%clk
1:07:22]} 12. f4 {[%clk 0:37:55]} 12... Nc6 {[%clk 0:49:12]} 13. Nb3 {[%clk
0:29:58]} 13... Qd8 {[%clk 0:44:13]} 14. e5 {[%clk 0:25:29]} 14... dxe5 {[%clk
0:44:14]} 15. fxe5 {[%clk 0:23:35]} 15... Nd7 {[%clk 0:43:11]} 16. e6 {[%clk
0:19:07]} 16... fxe6 {[%clk 0:43:17]} 17. Be3 {[%clk 0:18:12]} 17... Rf8 {[%clk
0:34:55]} 18. Rad1 {[%clk 0:16:52]} 18... Qc7 {[%clk 0:33:59]} 19. Qd2 {[%clk
0:12:45]} 19... Rxf1+ {[%clk 0:20:23]} 20. Rxf1 {[%clk 0:13:10]} 20... Nf6
{[%clk 0:20:10]} 21. Nb5 {[%clk 0:11:37]} 21... Qb8 {[%clk 0:19:11]} 22. g5
{[%clk 0:10:20]} 22... Nh5 {[%clk 0:16:11]} 23. Qf2 {[%clk 0:09:33]} 23... Nd8
{[%clk 0:16:00]} 24. Bd4 {[%clk 0:05:52]} 24... e5 {[%clk 0:15:16]} 25. Rc1
{[%clk 0:05:09]} 25... Nc6 {[%clk 0:14:43]} 26. Be3 {[%clk 0:01:27]} 26... a6
{[%clk 0:12:18]} 27. Rf1 {[%clk 0:01:01]} 27... Bf5 {[%clk 0:12:01]} 28. Na3
{[%clk 0:01:05]} 28... e4 {[%clk 0:11:44]} 29. Bxe4 {[%clk 0:00:51]} 29... Qg3+
{[%clk 0:11:12]} 30. Qxg3 {[%clk 0:00:48]} 30... Nxg3 {[%clk 0:11:38]} 31. Bxc6+
{[%clk 0:01:14]} 31... bxc6 {[%clk 0:12:03]} 32. Rf3 {[%clk 0:01:33]} 32... Ne4
{[%clk 0:11:41]} 33. Nd4 {[%clk 0:00:57]} 33... Nxg5 {[%clk 0:11:06]} 0-1

[Variant "Standard"]
[Site "Europe Echecs"]

[Event "Open Cappelle-la-Grande"]
[Date "2025.02.16"]
[White "Flom, Gabriel"]
[Black "Fedoryshyn, Ievgenii"]
[WhiteElo "2455"]
[BlackElo "2288"]
[Round "2.2.11"]
[Result "1-0"]
[TimeControl "40/5400+30:1800+30"]

1. d4 {[%clk 1:30:59]} 1... d5 {[%clk 1:25:36]} 2. Nf3 {[%clk 1:29:54]} 2... Nf6
{[%clk 1:25:51]} 3. c4 {[%clk 1:29:23]} 3... e6 {[%clk 1:26:03]} 4. g3 {[%clk
1:29:37]} 4... Be7 {[%clk 1:26:24]} 5. Bg2 {[%clk 1:29:48]} 5... O-O {[%clk
1:26:46]} 6. O-O {[%clk 1:30:01]} 6... dxc4 {[%clk 1:27:02]} 7. Qc2 {[%clk
1:30:07]} 7... a6 {[%clk 1:27:18]} 8. a4 {[%clk 1:29:54]} 8... Bd7 {[%clk
1:27:22]} 9. Qxc4 {[%clk 1:28:54]} 9... Bc6 {[%clk 1:27:33]} 10. Bg5 {[%clk
1:28:39]} 10... a5 {[%clk 1:25:39]} 11. Nc3 {[%clk 1:22:00]} 11... Na6 {[%clk
1:23:08]} 12. Rfe1 {[%clk 1:07:44]} 12... Nb4 {[%clk 1:22:59]} 13. Rac1 {[%clk
1:07:51]} 13... Rc8 {[%clk 1:09:06]} 14. e4 {[%clk 1:00:44]} 14... b6 {[%clk
0:58:31]} 15. Rcd1 {[%clk 0:57:35]} 15... Bb7 {[%clk 0:48:11]} 16. d5 {[%clk
0:56:22]} 16... exd5 {[%clk 0:45:26]} 17. exd5 {[%clk 0:56:39]} 17... h6 {[%clk
0:42:44]} 18. Bh4 {[%clk 0:25:30]} 18... Ba6 {[%clk 0:28:31]} 19. Nb5 {[%clk
0:25:06]} 19... Bxb5 {[%clk 0:16:52]} 20. axb5 {[%clk 0:25:08]} 20... Bc5 {[%clk
0:11:11]} 21. g4 {[%clk 0:12:25]} 21... g5 {[%clk 0:06:00]} 22. Bg3 {[%clk
0:12:19]} 22... Nd7 {[%clk 0:05:26]} 23. h4 {[%clk 0:07:03]} 23... Qf6 {[%clk
0:05:34]} 24. hxg5 {[%clk 0:07:20]} 24... hxg5 {[%clk 0:06:03]} 25. Qc1 {[%clk
0:06:51]} 25... Bd6 {[%clk 0:01:34]} 26. Nxg5 {[%clk 0:05:14]} 26... Bxg3 {[%clk
0:01:55]} 27. fxg3 {[%clk 0:05:42]} 27... Ne5 {[%clk 0:02:04]} 28. Ne4 {[%clk
0:05:12]} 28... Qg6 {[%clk 0:01:04]} 29. g5 {[%clk 0:03:43]} 29... Nbd3 {[%clk
0:00:37]} 30. Qc3 {[%clk 0:03:11]} 30... f5 {[%clk 0:00:39]} 31. gxf6 {[%clk
0:01:54]} 31... Nxe1 {[%clk 0:01:01]} 32. Rxe1 {[%clk 0:02:16]} 32... Rce8
{[%clk 0:00:36]} 33. Bh3 {[%clk 0:01:11]} 33... Ng4 {[%clk 0:00:35]} 34. Bxg4
{[%clk 0:01:23]} 34... Rxe4 {[%clk 0:00:52]} 35. Be6+ {[%clk 0:01:27]} 35... Kh7
{[%clk 0:01:06]} 36. Rxe4 {[%clk 0:01:30]} 36... Qxe4 {[%clk 0:01:32]} 37. Qxc7+
{[%clk 0:01:55]} 37... Kg6 {[%clk 0:01:30]} 38. Qg7+ {[%clk 0:02:08]} 38... Kh5
{[%clk 0:01:59]} 39. g4+ {[%clk 0:01:38]} 39... Kh4 {[%clk 0:02:27]} 40. Qh6+
{[%clk 0:02:01]} 40... Kg3 {[%clk 0:02:53]} 41. Qh2+ {[%clk 0:02:27]} 1-0

[Variant "Standard"]
[Site "Europe Echecs"]

[Event "Open Cappelle-la-Grande"]
[Date "2025.02.16"]
[White "Eugene, Nathael"]
[Black "Petriashvili, Nikoloz"]
[WhiteElo "2276"]
[BlackElo "2450"]
[Round "2.2.12"]
[Result "0-1"]
[TimeControl "40/5400+30:1800+30"]

1. e4 {[%clk 1:22:59]} 1... e5 {[%clk 1:30:43]} 2. Nf3 {[%clk 1:23:21]} 2... Nf6
{[%clk 1:30:37]} 3. Nxe5 {[%clk 1:23:45]} 3... d6 {[%clk 1:31:05]} 4. Nf3 {[%clk
1:24:08]} 4... Nxe4 {[%clk 1:31:31]} 5. c4 {[%clk 1:24:34]} 5... Be7 {[%clk
1:27:17]} 6. d4 {[%clk 1:23:40]} 6... O-O {[%clk 1:27:31]} 7. Bd3 {[%clk
1:24:04]} 7... Nf6 {[%clk 1:27:49]} 8. O-O {[%clk 1:15:25]} 8... Bg4 {[%clk
1:28:09]} 9. h3 {[%clk 1:15:49]} 9... Bh5 {[%clk 1:28:34]} 10. Nc3 {[%clk
1:13:46]} 10... Nc6 {[%clk 1:27:14]} 11. Be3 {[%clk 1:13:46]} 11... d5 {[%clk
1:25:33]} 12. c5 {[%clk 1:10:11]} 12... Re8 {[%clk 1:25:07]} 13. a3 {[%clk
0:44:53]} 13... Bf8 {[%clk 1:18:40]} 14. g4 {[%clk 0:40:53]} 14... Bg6 {[%clk
1:19:02]} 15. Bxg6 {[%clk 0:41:17]} 15... hxg6 {[%clk 1:18:33]} 16. Bg5 {[%clk
0:41:23]} 16... Qd7 {[%clk 1:13:58]} 17. Bxf6 {[%clk 0:40:22]} 17... gxf6 {[%clk
1:14:26]} 18. b4 {[%clk 0:38:32]} 18... Nd8 {[%clk 1:14:27]} 19. Qd2 {[%clk
0:37:06]} 19... Ne6 {[%clk 1:12:47]} 20. Nh4 {[%clk 0:33:02]} 20... Bg7 {[%clk
1:08:51]} 21. f4 {[%clk 0:32:56]} 21... f5 {[%clk 1:09:18]} 22. gxf5 {[%clk
0:33:17]} 22... Nxd4 {[%clk 1:08:26]} 23. Rad1 {[%clk 0:26:05]} 23... c6 {[%clk
1:05:05]} 24. f6 {[%clk 0:24:21]} 24... Qxh3 {[%clk 1:02:57]} 25. fxg7 {[%clk
0:24:41]} 25... Qxh4 {[%clk 1:03:13]} 26. Qxd4 {[%clk 0:25:01]} 26... Qg3+
{[%clk 1:03:33]} 27. Kh1 {[%clk 0:25:15]} 27... Re3 {[%clk 1:03:33]} 28. Rd2
{[%clk 0:25:33]} 28... Qh3+ {[%clk 1:03:23]} 29. Kg1 {[%clk 0:25:57]} 29... Rg3+
{[%clk 1:03:52]} 30. Kf2 {[%clk 0:26:19]} 30... Rf3+ {[%clk 1:04:21]} 0-1

[Variant "Standard"]
[Site "Europe Echecs"]